Cogmind - Beta 11.1 @@@ ROGUE MODE // 2022.05.11 @ 18:23:00 Player: kway_side Result: Destroyed by YI-UF0 with YI-UF0's Doublenader Performance ------------- Evolutions (0) 0 Regions Visited (2) 400 Robots Destroyed (27) 135 Value Destroyed (684) 684 Prototype IDs (3) 60 Alien Tech Used (0) 0 Bonus (0) 0 TOTAL SCORE: 1279 Bonus ------- None Cogmind --------- Core Integrity 0/250 Matter 300/300 Energy 99/100 System Corruption 0% Temperature Cool (0) Movement Rolling (130) Ox2 Location -10/Mines Parts ------- > --- POWER (1) -------- (None) > --- PROPULSION (2) --- Compact Wheel > --- UTILITY (2) ------ High-capacity Storage Unit > --- WEAPON (2) ------- (None) > --- INVENTORY (20) --- Ion Engine Light Treads Light Treads VTOL Module VTOL Module VTOL Module VTOL Module Heat Sink Large Storage Unit High-capacity Battery (250) Sensor Array Signal Interpreter Hacking Suite Small Laser Small Laser EMP Blaster EMP Blaster Hammer Peak State ------------ > --- POWER ------------ Ion Engine > --- PROPULSION ------- Light Treads Light Treads > --- UTILITY ---------- High-capacity Storage Unit Improved Targeting Computer > --- WEAPON ----------- Medium Laser EMP Blaster > --- INVENTORY -------- Ion Engine Light Treads Light Treads Compact Wheel VTOL Module VTOL Module VTOL Module VTOL Module Heat Sink Large Storage Unit High-capacity Battery Sensor Array Signal Interpreter Light Armor Plating Hacking Suite Small Laser Small Laser Light Cannon EMP Blaster Hammer [Rating: 11] Favorites ----------- Power Ion Engine Engine Ion Engine Propulsion Light Treads Treads Light Treads Leg Aluminum Leg Wheel Compact Wheel Utility Small Storage Unit Device Sensor Array Storage Small Storage Unit Processor Improved Targeting Computer Protection Light Armor Plating Weapon Light Cannon Energy Gun Small Laser Ballistic Cannon Light Cannon Launcher EMP Blaster Build | -11 -10 -10 ------- Run | Scr Mat Min Slots Evolved . | . . . Power . | . . . Propulsion . | . . . Utility . | . . . Weapon . | . . . Parts Attached 22 | . 16 6 Power 3 | . 2 1 Engine 3 | . 2 1 Core . | . . . Reactor . | . . . Propulsion 4 | . 2 2 Treads 3 | . 2 1 Leg . | . . . Wheel 1 | . . 1 Hover . | . . . Flight . | . . . Utility 9 | . 8 1 Device 3 | . 3 . Storage 3 | . 3 . Processor 1 | . 1 . Hackware . | . . . Protection 2 | . 1 1 Artifact . | . . . Weapon 6 | . 4 2 Energy Gun 3 | . 3 . Energy Cannon . | . . . Ballistic Gun . | . . . Ballistic Cannon 2 | . 1 1 Launcher 1 | . . 1 Special Weapon . | . . . Impact Weapon . | . . . Slashing Weapon . | . . . Piercing Weapon . | . . . Special Melee Weapon . | . . . Unidentified Prototypes . | . . . Parts Lost 7 | . 1 6 Power 1 | . . 1 Propulsion 2 | . . 2 Utility 1 | . . 1 Weapon 3 | . 1 2 Highest Loss Streak 6 | . 1 6 To Critical Strikes . | . . . Average Slot Usage (%) 97 | . 97 99 Engine 14 | . 14 14 Treads 24 | . 23 28 Leg 3 | . 4 . Device 2 | . 3 . Storage 14 | . 14 14 Processor 6 | . 5 14 Protection 2 | . 3 . Energy Gun 17 | . 17 14 Ballistic Cannon 10 | . 10 12 Naked Turns . | . . . Heaviest Build 51 | 13 50 51 Greatest Support 40 | 20 40 40 Greatest Overweight (x) 3 | . 1 3 Average Overweight (x) . | . . 1 Largest Inventory Capacity 20 | . 20 20 Average Capacity 12 | . 11 20 Most Carried 20 | . 20 20 Average Carried 11 | . 10 19 Final Capacity 20 | 8 20 20 Final Carried 20 | 6 20 18 Class Distribution -------------------- 100% | Mutant Dominant Class ---------------- Mutant | -10/Materials Mutant | -10/Mines Resources | -11 -10 -10 ----------- Run | Scr Mat Min Matter Collected 592 | 200 280 112 Remotely . | . . . Salvage Created 731 | . 540 191 Parts 55 | . 47 8 Haulers Intercepted 2 | . 2 . Recyclers Shooed 2 | . 1 1 Parts Field Recycled . | . . . Retrieved Matter . | . . . Parts Self-Destructed . | . . . Prevented . | . . . Kills | -11 -10 -10 ------- Run | Scr Mat Min Combat Hostiles Destroyed 22 | . 16 6 Guns 13 | . 11 2 Cannons 8 | . 5 3 AOE 1 | . . 1 Classes Destroyed 5 | . 5 . Hauler 2 | . 2 . Operator 2 | . 2 . Watcher 1 | . 1 . Swarmer 7 | . 6 1 Grunt 15 | . 10 5 Best Kill Streak 3 | . 3 3 Combat Bots Only 3 | . 3 3 Max Kills in Single Turn 1 | . 1 1 Gunslinging . | . . . Exploded 1 | . . 1 Melee . | . . . Uniques/NPCs Destroyed . | . . . Combat | -11 -10 -10 -------- Run | Scr Mat Min Damage Taken 1423 | . 720 703 Core 250 | . 84 166 Absorbed by Shields . | . . . Regen/Repaired (Parts) 10 | . 10 . Core Remaining (%) 100 | 100 . . Volleys Fired 80 | . 61 19 Largest 2 | . 2 2 Hottest 85 | . 85 85 Shots Fired 155 | . 120 35 Gun 106 | . 90 16 Cannon 46 | . 30 16 Launcher 3 | . . 3 Special . | . . . Kinetic 46 | . 30 16 Thermal 104 | . 88 16 Explosive . | . . . Electromagnetic 5 | . 2 3 Robot Hit Streak 19 | . 19 11 Robot Miss Streak 4 | . 4 2 Penetration Max . | . . . Secondary Targets . | . . . Shots Hit Robots 103 | . 77 26 Core Hits 46 | . 34 12 Critical Kills . | . . . Critical Parts Destroyed . | . . . Critical Strikes . | . . . Melee Attacks . | . . . Impact . | . . . Slashing . | . . . Piercing . | . . . Sneak Attacks . | . . . Combat Hostiles . | . . . Follow-up Attacks . | . . . Damage Inflicted 1466 | . 1029 437 Guns 849 | . 698 151 Cannons 522 | . 329 193 Explosions 88 | . . 88 Melee . | . . . Ramming 7 | . 2 5 Kinetic 522 | . 329 193 Thermal 850 | . 685 165 Explosive . | . . . Electromagnetic 87 | . 13 74 Impact . | . . . Slashing . | . . . Piercing . | . . . Highest Corruption . | . . . Average Corruption . | . . . Corruption Purged . | . . . Corruption Blocked . | . . . Overload Shots . | . . . Overflow Damage 10 | . 10 . Projectiles 10 | . 10 . Explosions . | . . . Melee . | . . . Knockbacks 11 | . 9 2 Impact . | . . . Kinetic 10 | . 8 2 Secondary 1 | . 1 . Self-Inflicted Damage 15 | . . 15 Shots 1 | . . 1 Rammed 1 | . . 1 Targets Rammed 2 | . 1 1 Kicked . | . . . Crushed 1 | . 1 . Highest Temperature 358 | . 258 358 Average Temperature 83 | . 68 129 Received Heat Transfer 489 | . 321 168 Effects 3 | . 2 1 Shutdowns 1 | . . 1 Interference 2 | . 2 . Siege Activations . | . . . Robots Corrupted . | . . . Combat Hostiles . | . . . Parts Fried . | . . . Impact Corruptions . | . . . Robots Melted . | . . . Combat Hostiles . | . . . Parts Melted . | . . . Heat Transferred 2077 | . 1583 494 Parts Sabotaged . | . . . Parts Stolen . | . . . Parts Stripped . | . . . Power Chain Reactions 1 | . . 1 Missiles Intercepted . | . . . Alert | -11 -10 -10 ------- Run | Scr Mat Min Peak Influence 214 | . 214 198 Initial 36 | . . 36 Average 116 | . 114 137 Maximum Alert Level 1 | . 1 . Low Security (%) 93 | . 93 100 Level 1 6 | . 6 . Level 2 . | . . . Level 3 . | . . . Level 4 . | . . . Level 5 . | . . . High Security . | . . . Max Security . | . . . Squads Dispatched 4 | . 4 . Investigation 2 | . 2 . Extermination . | . . . Reinforcement 2 | . 2 . Assault . | . . . Garrison . | . . . Intercept . | . . . Searches Triggered . | . . . Construction Impeded . | . . . Haulers Reinforced . | . . . Active Scanning Responses . | . . . Cargo Convoy Interrupts . | . . . Stealth | -11 -10 -10 --------- Run | Scr Mat Min Distress Signals . | . . . Communications Jammed . | . . . Distress Signals . | . . . Times Spotted 38 | . 30 8 Peak Tracking Total 3 | . 3 3 Tactical Retreats 7 | . 7 . Traps | -11 -10 -10 ------- Run | Scr Mat Min Traps Triggered . | . . . Indirectly . | . . . Trap Hack Attempts . | . . . Triggered . | . . . Disarmed . | . . . Reprogrammed . | . . . Reused . | . . . Traps Extracted . | . . . Installed . | . . . Triggered . | . . . Machines | -11 -10 -10 ---------- Run | Scr Mat Min Machines Disabled . | . . . Max in Single Turn . | . . . Machines Sabotaged . | . . . Garrisons Compromised . | . . . Overloaded Fab Kills . | . . . Hacking | -11 -10 -10 --------- Run | Scr Mat Min Machines Accessed 9 | . 9 . Terminals 6 | . 6 . Fabricators . | . . . Repair Stations 1 | . 1 . Recycling Units 2 | . 2 . Scanalyzers . | . . . Garrison Access . | . . . Total Hacks 24 | . 24 . Successful 13 | . 13 . Failed 11 | . 11 . Catastrophic 1 | . 1 . Database Lockouts . | . . . Manual 18 | . 18 . Terminals 18 | . 18 . Fabricators . | . . . Repair Stations 2 | . 2 . Recycling Units 4 | . 4 . Scanalyzers . | . . . Garrison Access . | . . . Terminal Hacks 6 | . 6 . Part Schematic 1 | . 1 . Robot Analysis 1 | . 1 . Prototype ID Bank 1 | . 1 . Terminal Index 1 | . 1 . Alert Level 1 | . 1 . Registered Components 1 | . 1 . Fabricator Hacks . | . . . Repair Station Hacks 2 | . 2 . Scan Component 1 | . 1 . Repair 1 | . 1 . Recycling Unit Hacks 4 | . 4 . Report Inventory 3 | . 3 . Retrieve Components 1 | . 1 . Scanalyzer . | . . . Garrison Access Hacks . | . . . Unauthorized Hacks 1 | . 1 . Terminals 1 | . 1 . Operators 1 | . 1 . Fabricators . | . . . Repair Stations . | . . . Recycling Units . | . . . Scanalyzers . | . . . Garrison Access . | . . . Data Cores Recovered . | . . . Used . | . . . Hacking Detections 8 | . 8 . Full Trace Events 2 | . 2 . Feedback Events . | . . . Feedback Blocked . | . . . Robot Schematics Acquired . | . . . Robots Built . | . . . Authchips . | . . . Time . | . . . Total Robot Build Rating . | . . . Part Schematics Acquired 1 | . 1 . Parts Built . | . . . Authchips . | . . . Time . | . . . Total Part Build Rating . | . . . Parts Repaired 1 | . 1 . Time 13 | . 13 . Parts Recycled . | . . . Recycled Matter . | . . . Retrieved Matter . | . . . Retrieved Components 8 | . 8 . Parts Scanalyzed . | . . . Part Schematics Acquired . | . . . Parts Damaged . | . . . Bothacking | -11 -10 -10 ------------ Run | Scr Mat Min Used RIF Installer . | . . . Robots Hacked . | . . . Non-combat . | . . . Combat . | . . . Robot Hacks Applied . | . . . Relay Couplers Released . | . . . Fabnet Peak Effective % . | . . . Robots Rewired . | . . . Allies Hacked . | . . . Hacks Repelled . | . . . Allies | -11 -10 -10 -------- Run | Scr Mat Min Total Allies . | . . . Largest Group . | . . . Highest-Rated Group . | . . . Highest-Rated Ally . | . . . Total Orders . | . . . Ally Attacks . | . . . Total Damage . | . . . Kills . | . . . Allies Corrupted . | . . . Allies Melted . | . . . Intel | -11 -10 -10 ------- Run | Scr Mat Min Robot Analysis Total 1 | . 1 . Derelict Logs Recovered . | . . . Drone Launches . | . . . Drone Recoveries . | . . . Exploration | -11 -10 -10 ------------- Run | Scr Mat Min Turns Passed 2765 | . 2476 289 Spaces Moved 1210 | 1 1119 90 Core . | . . . Treads 1085 | . 998 87 Legs 122 | 1 121 . Wheels 3 | . . 3 Hover . | . . . Flight . | . . . Fastest Speed 120 | 120 120 130 Average Speed 177 | 120 173 236 Slowest Speed 240 | 120 240 240 Overloaded Moves . | . . . Propulsion Burnouts . | . . . Robots Hopped . | . . . Cave-ins Triggered . | . . . Exploration Rate (%) 42 | 2 99 25 Regions Visited 2 Branch Regions 1 Pre-discovered Areas . | . . . Known Exits Taken . | . . . Unknown Exits Taken 2 | 1 1 . Scrap Searched . | . . . Spaces Dug . | . . . Terrain Destroyed 4 | . . 4 Melee . | . . . Projectile . | . . . AOE 4 | . . 4 Terrain Rammed . | . . . Walls Destroyed . | . . . Machines Disabled . | . . . Actions | -11 -10 -10 --------- Run | Scr Mat Min Total 1672 | . 1544 128 Wait 312 | . 302 10 Move 1208 | . 1118 90 Hop . | . . . Pick Up 27 | . 26 1 Fast Attach 4 | . 4 . Attach 2 | . 1 1 Detach 1 | . 1 . Swap 16 | . 11 5 Drop 20 | . 19 1 Fire 80 | . 61 19 Melee . | . . . Ram . | . . . Kick . | . . . Crush 2 | . 1 1 Escape Stasis . | . . . Rewire . | . . . Trap . | . . . Miscellaneous . | . . . Route ------- -11/Scrapyard -10/Materials (discovered 5 exits: [*Mat x3] / [*Min x2]) -10/Mines (discovered 2 exits: [*Mat x2]) History --------- Turn | Location | Event 1 | -11/Scrapyard | Discovered new exit (range 0) 1 | -11/Scrapyard | Entered Materials 174 | -10/Materials | Discovered new exit (range 6) 305 | -10/Materials | Build established: Mutant 529 | -10/Materials | Discovered new exit (range 15) 750 | -10/Materials | Repaired Sensor Array 800 | -10/Materials | Discovered new exit (range 14) 968 | -10/Materials | Discovered new exit (range 10) 1950 | -10/Materials | Discovered new exit (range 7) 2477 | -10/Materials | Entered Mines 2622 | -10/Mines | Discovered new exit (range 7) 2640 | -10/Mines | Core integrity fell below 50% 2746 | -10/Mines | Discovered new exit (range 14) 2761 | -10/Mines | Core integrity fell below 20% 2766 | -10/Mines | Destroyed by YI-UF0 with YI-UF0's Doublenader Last Messages --------------- 02668_ Acquired 24 matter. 02672_ Acquired 4 matter. 02675_ Acquired 12 matter. 02677_ Acquired 23 matter. 02701_ Dropped Hcp. Battery. 02702_ Extracted 4 energy. 02709_ Acquired Hcp. Battery. 02739_ Acquired 1 matter. 02743_ Acquired 9 matter. 02746_ EXIT=FOUND 02749_ The unstable cave ceiling collapses. 02756_ Lgt. Cannon destroyed. 02760_ The unstable cave ceiling collapses. 02760_ Discarded Imp. Targeting Computer. 02760_ Lgt. Treads destroyed. 02761_ The unstable cave ceiling collapses. 02764_ Ion Engine destroyed. 02766_ Lgt. Armor Plating destroyed. 02766_ Med. Laser destroyed. 02766_ Lgt. Treads destroyed. Map ----- +----------------------------------------------------+ | | | | | | | | | | | | | | | ????????????????????????????????????????????? | | ????????????????????????????????????????????? | | ????????????????????????????????????????????? | | ????????????????????????????????????????????? | | ????????????????????????????????????????????? | | ????????????????????????????????????????????? | | ??????????????????###??????????#########????? | | ?????????????????## #?????????# ? ???? | | ?????????????????# #????????# ????? | | ?????????????????? #???????# #??? | | ?????????????????? ???????# #??? | | ??????????????????? ???????# """ """ #??? | | ???????????????????? #??????# """ """ #??? | | ???????????????##???? < ##????# """ """ #??? | | ????????????#### #??? ###??# #??? | | ???????????## ### ##?# #??? | | ?????????? #?# #??? | | ?????????? ### #??? | | ?????????? g @ ## #??? | | ?????????? =* # """ """ #??? | | ?????????? [ """ """ #??? | | ??????????# ## """ """ #??? | | ???????????# # [ # #??? | | ???????????## ### # ###########??? | | ????????????#????##?## #????????????? | | ?????????????????????### ##????????????? | | ?????????????????????## # #######?????????? | | ?????????????????????# % % #?????????? | | ????????????????????# % #?????????? | | ??????????????????## ######[ #?????????? | | ??????????????????## #?????# #?????????? | | ??????????????????## #??????# #?????????? | | ??????????????????## % r???????# #?????????? | | ??????????????????#% ???????# #?????????? | | ????????????????? ???????#! #?????????? | | ???????????????? ????????# [#########?? | | ????????????????# ??????????# #?? | | ????????????????## ???????????# #?? | | ??????????????????#????????????##### #?? | | ???????????????????????????????????# < #?? | | ???????????????????????????????????# #?? | | ???????????????????????????????????# #?? | | ???????????????????????????????????# #?? | +----------------------------------------------------+ Best States ------------- Heat Dissipation 35 Energy Generation 10 Energy Capacity 250 Matter Stores 300 Matter Capacity 300 Sight Range 16 Robot Scan Range 14 Terrain Scan Density 10 Armor Coverage 150 Evasion (%) 55 Targeting Accuracy 6 Recoil Reduction 2 Item Schematics ----------------- Beam Cannon | -10/Materials | Hacked Robot Schematics ------------------ None Fabricated ------------ Nothing Alien Tech Used ----------------- None Achievements -------------- None Challenges ------------ None Game ------ Seed StoragePulseSource Manual? 0 Play Time 00:24:47 Cumulative 93.2 hours Start 2022.05.11 @ 17:56:07 End 2022.05.11 @ 18:23:00 Sessions 1 Manual Loads 0 Difficulty Rogue Special Mode None Game No. 97 Rogue 97 Adventurer 0 Explorer 0 Win Type - Total 0 Types 0/0/0/0/0/0/0/0/0 Lore% 26 Gallery% 36 Achievement% 30 Wizard Run 0 Options --------- ASCII 0 Keyboard 0 Movement Numpad Keybinds 0 Fullscreen 2 Font 18/Smallcaps Map View 76x50 Tactical HUD 1 Map Filters NONE Filters NONE Steam 1 RUN: 661737c1-e4b1-4700-8675-e6714d2184c5